fUST/lending_fUST_20250605
["ID","MTS","AMOUNT","RATE_DAILY","PERIOD"]
[364502379,1749123040812,-410.0,0.00018904,2]
[364502380,1749123040821,-440.0,0.00018904,2]
[364502382,1749123040830,-440.0,0.00018904,2]
[364502384,1749123040840,-440.0,0.00018904,2]
[364502386,1749123040849,-440.0,0.00018904,2]
[364502388,1749123040858,-440.0,0.00018904,2]
[364502390,1749123040867,-440.0,0.00018904,2]
[364502402,1749123040952,-440.0,0.00018904,2]
[364502404,1749123040970,-440.0,0.00018904,2]
[364502406,1749123040979,-410.0,0.00018904,2]
[364502408,1749123040989,-570.2,0.00018904,2]
[364502410,1749123040997,-440.0,0.00018904,2]
[364502412,1749123041007,-414.11451765,0.00018904,2]
[364502414,1749123041016,-440.0,0.00018904,2]
[364502416,1749123041025,-440.0,0.00018904,2]
[364502418,1749123041034,-440.0,0.00018904,2]
[364502420,1749123041043,-440.0,0.00018904,2]
[364502422,1749123041052,-440.0,0.00018904,2]
[364502424,1749123041061,-440.0,0.00018904,2]
[364502426,1749123041070,-440.0,0.00018904,2]
[364502428,1749123041079,-440.0,0.00018904,2]
[364502430,1749123041088,-440.0,0.00018904,2]
[364502432,1749123041097,-440.0,0.00018904,2]
[364502434,1749123041107,-440.0,0.00018904,2]
[364502436,1749123041116,-440.0,0.00018904,2]
[364502438,1749123041125,-544.21,0.00018904,2]
[364502439,1749123041136,-440.0,0.00018904,2]
[364502441,1749123041146,-522.73462613,0.00018904,2]
[364502443,1749123041155,-440.0,0.00018904,2]
[364502445,1749123041164,-440.0,0.00018904,2]
[364502447,1749123041173,-440.0,0.00018904,2]
[364502450,1749123041185,-1102.8,0.00018904,2]
[364502451,1749123041194,-440.0,0.00018904,2]
[364502454,1749123041204,-295.46354537,0.00018904,2]
[364502456,1749123041215,-421.02157797,0.00018904,2]
[364502458,1749123041225,-440.0,0.00018904,2]
[364502460,1749123041233,-440.0,0.00018904,2]
[364502462,1749123041243,-440.0,0.00018904,2]
[364502464,1749123041252,-440.0,0.00018904,2]
[364502466,1749123041261,-330.0,0.00018904,2]
[364502468,1749123041270,-440.0,0.00018904,2]
[364502469,1749123041279,-440.0,0.00018904,2]
[364502471,1749123041289,-440.0,0.00018904,2]
[364502473,1749123041298,-440.0,0.00018904,2]
[364502475,1749123041307,-420.0,0.00018904,2]
[364502477,1749123041316,-956.72,0.00018904,2]
[364502479,1749123041325,-440.0,0.00018904,2]
[364502481,1749123041334,-1136.28,0.00018904,2]
[364502483,1749123041344,-411.54575165,0.00018904,2]
[364502485,1749123041353,-440.0,0.00018904,2]
[364502487,1749123041363,-440.0,0.00018904,2]
[364502489,1749123041372,-410.0,0.00018904,2]
[364502491,1749123041381,-440.0,0.00018904,2]
[364502493,1749123041390,-440.0,0.00018904,2]
[364502495,1749123041400,-440.0,0.00018904,2]
[364502497,1749123041409,-440.0,0.00018904,2]
[364502499,1749123041418,-440.0,0.00018904,2]
[364502501,1749123041427,-440.0,0.00018904,2]
[364502503,1749123041437,-391.42155834,0.00018904,2]
[364502505,1749123041446,-361.72,0.00018904,2]
[364502507,1749123041455,-440.0,0.00018904,2]
[364502509,1749123041465,-500.0,0.00018922,2]
[364502511,1749123041475,-585.15538902,0.00018922,2]
[364502513,1749123041484,-500.0,0.00018938,2]
[364502515,1749123041493,-500.0,0.00018938,2]
[364502517,1749123041503,-500.0,0.00018938,2]
[364502519,1749123041512,-500.0,0.00018991,2]
[364502521,1749123041521,-158.80491363,0.00018991,2]
[364502523,1749123041531,-1199.67180559,0.00019107,2]
[364502525,1749123041540,-301.0,0.0001912,2]
[364502527,1749123041549,-587.07,0.00019177,2]
[364502529,1749123041559,-587.07,0.00019177,2]
[364502531,1749123041568,-440.0,0.00019178,2]
[364502533,1749123041577,-440.0,0.00019178,2]
[364502535,1749123041588,-440.0,0.00019178,2]
[364502537,1749123041597,-440.0,0.00019178,2]
[364502539,1749123041606,-440.0,0.00019178,2]
[364502541,1749123041614,-400.0,0.00019178,2]
[364502543,1749123041623,-410.0,0.00019178,2]
[364502545,1749123041633,-410.0,0.00019178,2]
[364502547,1749123041642,-440.0,0.00019178,2]
[364502549,1749123041651,-440.0,0.00019178,2]
[364502551,1749123041660,-249.2748406,0.00019178,2]
[364502553,1749123041669,-440.0,0.00019178,2]
[364502555,1749123041679,-440.0,0.00019178,2]
[364502557,1749123041688,-440.0,0.00019178,2]
[364502559,1749123041697,-440.0,0.00019178,2]
[364502561,1749123041707,-440.0,0.00019178,2]
[364502563,1749123041716,-440.0,0.00019178,2]
[364502565,1749123041725,-448.66104608,0.00019178,2]
[364502567,1749123041734,-440.0,0.00019178,2]
[364502569,1749123041744,-440.0,0.00019178,2]
[364502571,1749123041754,-400.0,0.00019178,2]
[364502573,1749123041763,-440.0,0.00019178,2]
[364502575,1749123041772,-440.0,0.00019178,2]
[364502577,1749123041782,-440.0,0.00019178,2]
[364502579,1749123041791,-440.0,0.00019178,2]
[364502581,1749123041800,-440.0,0.00019178,2]
[364502583,1749123041809,-400.0,0.00019178,2]
[364502584,1749123041817,-645.6871759,0.00019178,2]
[364502586,1749123041827,-440.0,0.00019178,2]
[364502588,1749123041836,-440.0,0.00019178,2]
[364502590,1749123041846,-160.0,0.00019178,2]
[364502592,1749123041856,-500.0,0.00019178,2]
[364502595,1749123041866,-423.00240113,0.00019178,2]
[364502597,1749123041875,-500.0,0.00019178,2]
[364502598,1749123041885,-500.0,0.00019178,2]
[364502600,1749123041894,-500.0,0.00019178,2]
[364502602,1749123041903,-500.0,0.00019178,2]
[364502604,1749123041912,-500.0,0.00019178,2]
[364502606,1749123041922,-500.0,0.00019178,2]
[364502609,1749123041931,-500.0,0.00019178,2]
[364502610,1749123041940,-500.0,0.00019178,2]
[364502613,1749123041950,-440.0,0.00019178,2]
[364502614,1749123041959,-440.0,0.00019178,2]
[364502616,1749123041968,-440.0,0.00019178,2]
[364502619,1749123041978,-440.0,0.00019178,2]
[364502621,1749123041987,-440.0,0.00019178,2]
[364502622,1749123041996,-440.0,0.00019178,2]
[364502625,1749123042006,-440.0,0.00019178,2]
[364502626,1749123042015,-400.0,0.00019178,2]
[364502628,1749123042024,-440.0,0.00019178,2]
[364502630,1749123042033,-440.0,0.00019178,2]
[364502632,1749123042043,-440.0,0.00019178,2]
[364502634,1749123042052,-440.0,0.00019178,2]
[364502636,1749123042061,-449.8,0.00019178,2]
[364502639,1749123042071,-334.21884167,0.00019178,2]
[364502641,1749123042080,-400.0,0.00019178,2]
[364502643,1749123042090,-440.0,0.00019178,2]
[364502645,1749123042099,-440.0,0.00019178,2]
[364502647,1749123042109,-440.0,0.00019178,2]
[364502649,1749123042118,-371.8277226,0.00019178,2]
[364502651,1749123042127,-440.0,0.00019178,2]
[364502653,1749123042140,-440.0,0.00019178,2]
[364502655,1749123042149,-528.33692161,0.00019178,2]
[364502657,1749123042158,-440.0,0.00019178,2]
[364502659,1749123042167,-520.95849863,0.00019178,2]
[364502661,1749123042176,-440.0,0.00019178,2]
[364502663,1749123042186,-440.0,0.00019178,2]
[364502664,1749123042195,-632.68,0.00019178,2]
[364502666,1749123042205,-440.0,0.00019178,2]
[364502668,1749123042215,-400.0,0.00019178,2]
[364502670,1749123042225,-440.0,0.00019178,2]
[364502672,1749123042234,-440.0,0.00019178,2]
[364502674,1749123042243,-440.0,0.00019178,2]
[364502676,1749123042252,-390.0,0.00019178,2]
[364502678,1749123042261,-440.0,0.00019178,2]
[364502680,1749123042270,-440.0,0.00019178,2]
[364502682,1749123042279,-400.0,0.00019178,2]
[364502684,1749123042288,-440.0,0.00019178,2]
[364502686,1749123042298,-181.8070973,0.00019178,2]
[364502688,1749123042307,-973.91,0.00019178,2]
[364502690,1749123042317,-440.0,0.00019178,2]
[364502692,1749123042327,-440.0,0.00019178,2]
[364502694,1749123042336,-1504.93,0.00019178,2]
[364502696,1749123042346,-1379.82,0.00019178,2]
[364502698,1749123042355,-440.0,0.00019178,2]
[364502700,1749123042364,-284.82145463,0.00019178,2]
[364502702,1749123042373,-1075.38,0.00019178,2]
[364502704,1749123042382,-1034.38,0.00019178,2]
[364502706,1749123042391,-400.0,0.00019178,2]
[364502708,1749123042400,-440.0,0.00019178,2]
[364502710,1749123042410,-440.0,0.00019178,2]
[364502712,1749123042419,-410.0,0.00019178,2]
[364502714,1749123042428,-472.9,0.00019178,2]
[364502716,1749123042437,-440.0,0.00019178,2]
[364502718,1749123042447,-440.0,0.00019178,2]
[364502720,1749123042456,-440.0,0.00019178,2]
[364502722,1749123042465,-440.0,0.00019178,2]
[364502724,1749123042474,-440.0,0.00019178,2]
[364502726,1749123042483,-440.0,0.00019178,2]
[364502728,1749123042492,-440.0,0.00019178,2]
[364502730,1749123042501,-440.0,0.00019178,2]
[364502732,1749123042511,-540.44,0.00019178,2]
[364502734,1749123042520,-440.0,0.00019178,2]
[364502737,1749123042529,-440.0,0.00019178,2]
[364502740,1749123042538,-440.0,0.00019178,2]
[364502743,1749123042547,-410.0,0.00019178,2]
[364502745,1749123042556,-671.45,0.00019178,2]
[364502747,1749123042565,-440.0,0.00019178,2]
[364502750,1749123042575,-1114.0,0.00019178,2]
[364502751,1749123042584,-440.0,0.00019178,2]
[364502753,1749123042593,-411.53042223,0.00019178,2]
[364502755,1749123042601,-440.0,0.00019178,2]
[364502757,1749123042612,-440.0,0.00019178,2]
[364502759,1749123042621,-400.0,0.00019178,2]
[364502761,1749123042631,-440.0,0.00019178,2]
[364502765,1749123042640,-440.0,0.00019178,2]
[364502767,1749123042650,-440.0,0.00019178,2]
[364502771,1749123042659,-408.17971243,0.00019178,2]
[364502774,1749123042669,-570.2,0.00019178,2]
[364502777,1749123042678,-440.0,0.00019178,2]
[364502779,1749123042688,-440.0,0.00019178,2]
[364502783,1749123042697,-485.30386907,0.00019178,2]
[364502786,1749123042706,-400.0,0.00019178,2]
[364502799,1749123042799,-440.0,0.00019178,2]
[364502801,1749123042809,-440.0,0.00019178,2]
[364502804,1749123042819,-440.0,0.00019178,2]
[364502806,1749123042829,-400.0,0.00019178,2]
[364502808,1749123042838,-440.0,0.00019178,2]
[364502810,1749123042847,-440.0,0.00019178,2]
[364502811,1749123042858,-440.0,0.00019178,2]
[364502814,1749123042868,-391.28351299,0.00019178,2]
[364502816,1749123042877,-440.0,0.00019178,2]
[364502818,1749123042886,-544.21,0.00019178,2]
[364502819,1749123042895,-440.0,0.00019178,2]
[364502821,1749123042905,-440.0,0.00019178,2]
[364502824,1749123042914,-235.08175579,0.00019178,2]
[364502826,1749123042923,-417.63754477,0.00019178,2]
[364502828,1749123042933,-1102.8,0.00019178,2]
[364502830,1749123042941,-440.0,0.00019178,2]
[364502832,1749123042950,-480.62,0.00019178,2]
[364502834,1749123042959,-440.0,0.00019178,2]
[364502835,1749123042968,-440.0,0.00019178,2]
[364502837,1749123042977,-440.0,0.00019178,2]
[364502839,1749123042986,-440.0,0.00019178,2]
[364502841,1749123042995,-440.0,0.00019178,2]
[364502843,1749123043005,-440.0,0.00019178,2]
[364502845,1749123043014,-440.0,0.00019178,2]
[364502847,1749123043023,-956.72,0.00019178,2]
[364502850,1749123043032,-534.03512526,0.00019178,2]
[364502851,1749123043042,-1136.28,0.00019178,2]
[364502853,1749123043051,-440.0,0.00019178,2]
[364502855,1749123043061,-440.0,0.00019178,2]
[364502858,1749123043071,-440.0,0.00019178,2]
[364502859,1749123043080,-440.0,0.00019178,2]
[364502861,1749123043090,-440.0,0.00019178,2]
[364502863,1749123043099,-440.0,0.00019178,2]
[364502865,1749123043109,-440.0,0.00019178,2]
[364502867,1749123043118,-440.0,0.00019178,2]
[364502869,1749123043127,-440.0,0.00019178,2]
[364502871,1749123043139,-173.1973884,0.00019178,2]
[364502873,1749123043148,-1199.67180559,0.00019348,2]
[364502875,1749123043157,-160.0,0.00019413,2]
[364502877,1749123043166,-160.0,0.00019413,2]
[364502879,1749123043175,-229.48950782,0.00019413,2]
[364502881,1749123043184,-160.0,0.00019414,2]
[364502883,1749123043193,-842.5625,0.00019414,2]
[364502885,1749123043202,-423.7637613,0.00019414,2]
[364502887,1749123043213,-160.0,0.00019414,2]
[364502889,1749123043223,-160.0,0.00019414,2]
[364502891,1749123043232,-160.0,0.00019414,2]
[364502893,1749123043241,-212.94059491,0.00019414,2]
[364502895,1749123043252,-587.07,0.00019451,2]
[364502897,1749123043261,-440.0,0.00019452,2]
[364502899,1749123043270,-553.31251349,0.00019452,2]
[364502901,1749123043279,-440.0,0.00019452,2]
[364502903,1749123043288,-390.0,0.00019452,2]
[364502905,1749123043297,-440.0,0.00019452,2]
[364502907,1749123043305,-440.0,0.00019452,2]
[364502910,1749123043314,-167.77321708,0.00019452,2]
[364502913,1749123043324,-440.0,0.00019452,2]
[364502915,1749123043333,-440.0,0.00019452,2]
[364502917,1749123043342,-440.0,0.00019452,2]
[364502919,1749123043351,-440.0,0.00019452,2]
[364502921,1749123043360,-186.143096,0.00019452,2]
[364502923,1749123043370,-400.49,0.00019452,2]
[364502925,1749123043379,-440.0,0.00019452,2]
[364502927,1749123043388,-440.0,0.00019452,2]
[364502929,1749123043397,-440.0,0.00019452,2]
[364502931,1749123043406,-400.0,0.00019452,2]
[364502933,1749123043415,-434.84859583,0.00019452,2]
[364502935,1749123043424,-440.0,0.00019452,2]
[364502937,1749123043434,-440.0,0.00019452,2]
[364502939,1749123043443,-440.0,0.00019452,2]
[364502941,1749123043452,-440.0,0.00019452,2]
[364502943,1749123043462,-440.0,0.00019452,2]
[364502945,1749123043471,-440.0,0.00019452,2]
[364502947,1749123043481,-440.0,0.00019452,2]
[364502949,1749123043491,-440.0,0.00019452,2]
[364502951,1749123043500,-440.0,0.00019452,2]
[364502953,1749123043509,-440.0,0.00019452,2]
[364502955,1749123043518,-440.0,0.00019452,2]
[364502957,1749123043527,-440.0,0.00019452,2]
[364502959,1749123043536,-440.0,0.00019452,2]
[364502961,1749123043545,-440.0,0.00019452,2]
[364502963,1749123043554,-632.68,0.00019452,2]
[364502965,1749123043563,-440.0,0.00019452,2]
[364502967,1749123043572,-430.0,0.00019452,2]
[364502969,1749123043581,-440.0,0.00019452,2]
[364502971,1749123043590,-440.0,0.00019452,2]
[364502973,1749123043599,-440.0,0.00019452,2]
[364502975,1749123043609,-440.0,0.00019452,2]
[364502977,1749123043618,-440.0,0.00019452,2]
[364502979,1749123043627,-973.91,0.00019452,2]
[364502981,1749123043636,-400.0,0.00019452,2]
[364502983,1749123043645,-440.0,0.00019452,2]
[364502985,1749123043654,-1504.93,0.00019452,2]
[364502987,1749123043664,-1379.82,0.00019452,2]
[364502989,1749123043673,-440.0,0.00019452,2]
[364502991,1749123043682,-1075.38,0.00019452,2]
[364502993,1749123043692,-1034.38,0.00019452,2]
[364502995,1749123043702,-353.56524138,0.00019452,2]
[364502997,1749123043711,-440.0,0.00019452,2]
[364502999,1749123043720,-440.0,0.00019452,2]
[364503001,1749123043729,-440.0,0.00019452,2]
[364503003,1749123043739,-440.0,0.00019452,2]
[364503005,1749123043748,-440.0,0.00019452,2]
[364503007,1749123043758,-440.0,0.00019452,2]
[364503009,1749123043766,-440.0,0.00019452,2]
[364503011,1749123043775,-456.00691686,0.00019452,2]
[364503013,1749123043785,-440.0,0.00019452,2]
[364503015,1749123043794,-540.44,0.00019452,2]
[364503017,1749123043803,-400.0,0.00019452,2]
[364503019,1749123043812,-440.0,0.00019452,2]
[364503021,1749123043821,-440.0,0.00019452,2]
[364503023,1749123043830,-671.45,0.00019452,2]
[364503025,1749123043839,-440.0,0.00019452,2]
[364503027,1749123043848,-1114.0,0.00019452,2]
[364503029,1749123043858,-440.0,0.00019452,2]
[364503031,1749123043867,-440.0,0.00019452,2]
[364503033,1749123043876,-440.0,0.00019452,2]
[364503035,1749123043885,-440.0,0.00019452,2]
[364503037,1749123043894,-440.0,0.00019452,2]
[364503039,1749123043903,-440.0,0.00019452,2]
[364503041,1749123043912,-570.2,0.00019452,2]
[364503043,1749123043922,-440.0,0.00019452,2]
[364503045,1749123043931,-440.0,0.00019452,2]
[364503047,1749123043940,-440.0,0.00019452,2]
[364503049,1749123043948,-440.0,0.00019452,2]
[364503051,1749123043957,-440.0,0.00019452,2]
[364503053,1749123043966,-440.0,0.00019452,2]
[364503055,1749123043975,-440.0,0.00019452,2]
[364503057,1749123043984,-390.0,0.00019452,2]
[364503059,1749123043994,-579.02836792,0.00019452,2]
[364503061,1749123044002,-544.21,0.00019452,2]
[364503063,1749123044012,-440.0,0.00019452,2]
[364503065,1749123044021,-400.0,0.00019452,2]
[364503067,1749123044030,-1102.8,0.00019452,2]
[364503069,1749123044040,-440.0,0.00019452,2]
[364503071,1749123044049,-410.0,0.00019452,2]
[364503073,1749123044058,-440.0,0.00019452,2]
[364503075,1749123044067,-440.0,0.00019452,2]
[364503077,1749123044076,-440.0,0.00019452,2]
[364503079,1749123044085,-440.0,0.00019452,2]
[364503081,1749123044094,-440.0,0.00019452,2]
[364503082,1749123044103,-440.0,0.00019452,2]
[364503084,1749123044112,-956.72,0.00019452,2]
[364503086,1749123044121,-1136.28,0.00019452,2]
[364503088,1749123044130,-440.0,0.00019452,2]
[364503090,1749123044144,-440.0,0.00019452,2]
[364503092,1749123044153,-400.0,0.00019452,2]
[364503094,1749123044163,-440.0,0.00019452,2]
[364503096,1749123044172,-440.0,0.00019452,2]
[364503098,1749123044182,-390.0,0.00019452,2]
[364503100,1749123044191,-440.0,0.00019452,2]
[364503102,1749123044200,-440.0,0.00019452,2]
[364503104,1749123044210,-440.0,0.00019452,2]
[364503106,1749123044219,-521.35746861,0.0001947,2]
[364503108,1749123044230,-500.0,0.00019499,2]
[364503110,1749123044240,-500.0,0.00019499,2]
[364503112,1749123044249,-500.0,0.00019499,2]
[364503114,1749123044258,-156.09646685,0.00019499,2]
[364503116,1749123044268,-500.0,0.00019499,2]
[364503118,1749123044277,-500.0,0.00019499,2]
[364503120,1749123044286,-201201.68248666,0.000195,2]
[364503143,1749123044497,-500.0,0.00019499,2]
[364503146,1749123044508,-325.1020984,0.00019499,2]
[364503185,1749123045070,-440.0,0.00018356,2]
[364503187,1749123045080,-440.0,0.00018356,2]
[364503189,1749123045090,-430.0,0.00018356,2]
[364503191,1749123045099,-440.0,0.00018356,2]
[364503193,1749123045110,-420.0,0.0001863,2]
[364503195,1749123045119,-440.0,0.0001863,2]
[364503197,1749123045130,-400.88555315,0.0001863,2]
[364503200,1749123045144,-39.11444685,0.0001863,2]
[364503202,1749123045154,-399.03,0.00018904,2]
[364503204,1749123045164,-174.8979016,0.00019499,2]
[364503206,1749123045173,-500.0,0.00019499,2]
[364503208,1749123045183,-500.0,0.00019499,2]
[364503210,1749123045193,-500.0,0.00019499,2]
[364503212,1749123045202,-500.0,0.00019499,2]
[364503214,1749123045212,-500.0,0.00019499,2]
[364503216,1749123045222,-500.0,0.00019499,2]
[364503218,1749123045232,-570.38367314,0.00019499,2]
[364503220,1749123045241,-500.0,0.00019499,2]
[364503222,1749123045250,-500.0,0.00019499,2]
[364503224,1749123045259,-500.0,0.00019499,2]
[364503226,1749123045269,-500.0,0.00019499,2]
[364503228,1749123045278,-500.0,0.00019499,2]
[364503230,1749123045287,-500.0,0.00019499,2]
[364503232,1749123045297,-500.0,0.00019499,2]
[364503234,1749123045306,-500.0,0.00019499,2]
[364503236,1749123045316,-500.0,0.00019499,2]
[364503238,1749123045325,-19340.98995759,0.000195,2]
[364503240,1749123045338,-29136.25642522,0.000195,2]
[364503242,1749123045347,-207.4,0.00019514,2]
[364503244,1749123045357,-4564.58,0.00019551,2]
[364503246,1749123045367,-1199.67180559,0.0001959,2]
[364503248,1749123045376,-587.07,0.00019725,2]
[364503250,1749123045386,-440.0,0.00019726,2]
[364503252,1749123045395,-440.0,0.00019726,2]
[364503254,1749123045405,-440.0,0.00019726,2]
[364503256,1749123045414,-440.0,0.00019726,2]
[364503258,1749123045423,-440.0,0.00019726,2]
[364503260,1749123045433,-440.0,0.00019726,2]
[364503262,1749123045442,-334.66792769,0.00019726,2]
[364503264,1749123045451,-440.0,0.00019726,2]
[364503266,1749123045460,-295.60729039,0.00019726,2]
[364503268,1749123045470,-440.0,0.00019726,2]
[364503270,1749123045479,-440.0,0.00019726,2]
[364503271,1749123045489,-440.0,0.00019726,2]
[364503273,1749123045498,-440.0,0.00019726,2]
[364503275,1749123045509,-440.0,0.00019726,2]
[364503277,1749123045518,-440.0,0.00019726,2]
[364503279,1749123045528,-440.0,0.00019726,2]
[364503281,1749123045538,-440.0,0.00019726,2]
[364503283,1749123045548,-308.62051904,0.00019726,2]
[364503285,1749123045558,-390.0,0.00019726,2]
[364503288,1749123045567,-440.0,0.00019726,2]
[364503291,1749123045577,-440.0,0.00019726,2]
[364503294,1749123045587,-440.0,0.00019726,2]
[364503297,1749123045596,-440.0,0.00019726,2]
[364503299,1749123045606,-440.0,0.00019726,2]
[364503301,1749123045616,-440.0,0.00019726,2]
[364503303,1749123045625,-440.0,0.00019726,2]
[364503305,1749123045635,-440.0,0.00019726,2]
[364503307,1749123045645,-440.0,0.00019726,2]
[364503309,1749123045654,-440.0,0.00019726,2]
[364503311,1749123045664,-973.91,0.00019726,2]
[364503313,1749123045674,-440.0,0.00019726,2]
[364503315,1749123045683,-1504.93,0.00019726,2]
[364503317,1749123045693,-1379.82,0.00019726,2]
[364503319,1749123045702,-440.0,0.00019726,2]
[364503321,1749123045711,-1075.38,0.00019726,2]
[364503323,1749123045720,-1034.38,0.00019726,2]
[364503325,1749123045729,-440.0,0.00019726,2]
[364503327,1749123045739,-440.0,0.00019726,2]
[364503329,1749123045749,-382.32,0.00019726,2]
[364503331,1749123045758,-440.0,0.00019726,2]
[364503333,1749123045768,-440.0,0.00019726,2]
[364503335,1749123045777,-440.0,0.00019726,2]
[364503337,1749123045786,-440.0,0.00019726,2]
[364503339,1749123045795,-440.0,0.00019726,2]
[364503341,1749123045804,-540.44,0.00019726,2]
[364503343,1749123045814,-440.0,0.00019726,2]
[364503345,1749123045823,-440.0,0.00019726,2]
[364503347,1749123045832,-671.45,0.00019726,2]
[364503349,1749123045841,-440.0,0.00019726,2]
[364503351,1749123045851,-1114.0,0.00019726,2]
[364503353,1749123045860,-440.0,0.00019726,2]
[364503355,1749123045869,-440.0,0.00019726,2]
[364503364,1749123045947,-440.0,0.00019726,2]
[364503367,1749123045965,-440.0,0.00019726,2]
[364503369,1749123045974,-440.0,0.00019726,2]
[364503370,1749123045984,-380.0,0.00019726,2]
[364503373,1749123045998,-570.2,0.00019726,2]
[364503375,1749123046007,-440.0,0.00019726,2]
[364503377,1749123046017,-440.0,0.00019726,2]
[364503379,1749123046026,-440.0,0.00019726,2]
[364503381,1749123046036,-440.0,0.00019726,2]
[364503383,1749123046045,-440.0,0.00019726,2]
[364503385,1749123046055,-440.0,0.00019726,2]
[364503387,1749123046064,-440.0,0.00019726,2]
[364503389,1749123046073,-544.21,0.00019726,2]
[364503391,1749123046083,-494.43680875,0.00019726,2]
[364503393,1749123046092,-1102.8,0.00019726,2]
[364503395,1749123046101,-440.0,0.00019726,2]
[364503397,1749123046111,-440.0,0.00019726,2]
[364503398,1749123046121,-522.06929597,0.00019726,2]
[364503400,1749123046130,-440.0,0.00019726,2]
[364503403,1749123046146,-440.0,0.00019726,2]
[364503404,1749123046155,-440.0,0.00019726,2]
[364503406,1749123046164,-440.0,0.00019726,2]
[364503408,1749123046174,-956.72,0.00019726,2]
[364503410,1749123046184,-1136.28,0.00019726,2]
[364503412,1749123046194,-440.0,0.00019726,2]
[364503414,1749123046203,-440.0,0.00019726,2]
[364503416,1749123046213,-440.0,0.00019726,2]
[364503418,1749123046223,-440.0,0.00019726,2]
[364503420,1749123046232,-400.0,0.00019726,2]
[364503422,1749123046242,-440.0,0.00019726,2]
[364503424,1749123046251,-390.0,0.00019726,2]
[364503426,1749123046261,-1199.67180559,0.00019831,2]
[364503428,1749123046271,-271.306,0.00019869,2]
[364503430,1749123046279,-587.07,0.00019999,2]
[364503432,1749123046288,-587.07,0.00019999,2]
[364503434,1749123046297,-587.07,0.00019999,2]
[364503436,1749123046307,-587.07,0.00019999,2]
[364503438,1749123046316,-587.13,0.00019999,2]
[364503439,1749123046327,-440.0,0.0002,2]
[364503442,1749123046337,-370.0,0.0002,2]
[364503444,1749123046347,-440.0,0.0002,2]
[364503446,1749123046356,-250.85737731,0.0002,2]
[364503448,1749123046366,-211.89756893,0.0002,2]
[364503450,1749123046375,-440.0,0.0002,2]
[364503452,1749123046384,-440.0,0.0002,2]
[364503454,1749123046394,-440.0,0.0002,2]
[364503456,1749123046403,-370.0,0.0002,2]
[364503458,1749123046413,-370.0,0.0002,2]
[364503460,1749123046422,-440.0,0.0002,2]
[364503461,1749123046431,-440.0,0.0002,2]
[364503464,1749123046440,-394.21166752,0.0002,2]
[364503465,1749123046449,-301.88013482,0.0002,2]
[364503467,1749123046458,-329.99676198,0.0002,2]
[364503469,1749123046467,-440.0,0.0002,2]
[364503471,1749123046477,-440.0,0.0002,2]
[364503473,1749123046487,-440.0,0.0002,2]
[364503475,1749123046496,-440.0,0.0002,2]
[364503477,1749123046505,-440.0,0.0002,2]